fUST/lending_fUST_20250325
["ID","MTS","AMOUNT","RATE_DAILY","PERIOD"]
[356642710,1742889037661,-54399.54696906,0.0001319,2]
[356642711,1742889037712,-32564.27075148,0.0001319,2]
[356642712,1742889037757,-44596.75877602,0.0001319,2]
[356642759,1742889039990,-528.46017673,0.0001319,2]
[356642763,1742889040079,-16712.92420092,0.0001319,2]
[356642764,1742889040090,-837.99275063,0.0001319,2]
[356643064,1742889043020,-12309.99999272,0.0001319,2]
[356643479,1742889357849,-188.04187376,0.00012189,2]
[356643480,1742889365412,-151.0,0.00012188,2]
[356643562,1742890237861,-300.0,0.00012187,2]
[356643564,1742890237870,-500.0,0.00012188,2]
[356643566,1742890237879,-500.0,0.00012188,2]
[356643568,1742890237889,-500.0,0.00012188,2]
[356643569,1742890237898,-312.45036314,0.00012188,2]
[356643571,1742890237908,-500.0,0.00012188,2]
[356643573,1742890237917,-500.0,0.00012188,2]
[356643575,1742890237926,-500.0,0.00012188,2]
[356643576,1742890237934,-500.0,0.00012188,2]
[356643577,1742890237944,-24711.95812624,0.00012189,2]
[356643578,1742890237953,-1152.5726683,0.00013009,2]
[356643579,1742890237963,-1082.72229477,0.00013014,2]
[356643580,1742890237972,-192.83385676,0.00013072,2]
[356643581,1742890237981,-500.0,0.00013072,2]
[356643582,1742890237990,-271.68768927,0.00013072,2]
[356643583,1742890237999,-500.0,0.00013073,2]
[356643584,1742890238010,-500.0,0.00013073,2]
[356643585,1742890238019,-500.0,0.00013073,2]
[356643586,1742890238028,-503.55975501,0.00013073,2]
[356643587,1742890238038,-500.0,0.00013073,2]
[356643588,1742890238047,-500.0,0.00013073,2]
[356643589,1742890238057,-500.72907188,0.00013073,2]
[356643590,1742890238066,-503.91557304,0.00013073,2]
[356643591,1742890238076,-441.12418669,0.00013073,2]
[356643592,1742890238086,-500.0,0.00013073,2]
[356643593,1742890238096,-502.9222044,0.00013073,2]
[356643594,1742890238105,-156.07071748,0.00013073,2]
[356643595,1742890238114,-160.31385673,0.00013073,2]
[356643596,1742890238124,-504.90924985,0.00013073,2]
[356643597,1742890238134,-500.0,0.00013073,2]
[356643598,1742890238143,-345.12152354,0.00013073,2]
[356643599,1742890238152,-502.04484771,0.00013073,2]
[356643600,1742890238161,-504.24882292,0.00013073,2]
[356643601,1742890238170,-269.39474856,0.00013073,2]
[356643602,1742890238180,-159.88224129,0.00013073,2]
[356643603,1742890238189,-505.19185165,0.00013073,2]
[356643604,1742890238198,-154.4185095,0.00013073,2]
[356643605,1742890238207,-500.0,0.00013073,2]
[356643606,1742890238217,-500.0,0.00013073,2]
[356643607,1742890238226,-5000.0,0.0001309,2]
[356643608,1742890238235,-14080.10997224,0.0001309,2]
[356643619,1742890240271,-45034.12159865,0.0001309,2]
[356643641,1742890319303,171.8255368,0.00010959,2]
[356643645,1742890569928,-150.0,0.00012107,2]
[356643703,1742891432210,-38.0418738,0.00012107,2]
[356643704,1742891432224,-150.0,0.00012849,2]
[356643705,1742891432236,-150.0,0.00012858,2]
[356643706,1742891432248,-500.0,0.00012973,2]
[356643707,1742891432258,-500.0,0.00012973,2]
[356643708,1742891432269,-500.0,0.00012973,2]
[356643709,1742891432280,-500.0,0.00012973,2]
[356643710,1742891432293,-300.0,0.00012989,2]
[356643711,1742891432304,-590.11824832,0.00012989,2]
[356643712,1742891432315,-423.60559591,0.00012989,2]
[356643713,1742891432325,-33043.73077737,0.0001299,2]
[356643714,1742891432340,-2816.53095244,0.0001299,2]
[356643715,1742891432353,-606.84252089,0.0001299,2]
[356643716,1742891432367,-2007.73760735,0.0001299,2]
[356643728,1742891437922,-25765.42604769,0.0001299,2]
[356643729,1742891438029,-31084.89217438,0.0001299,2]
[356643730,1742891438042,-2692.7137372,0.0001299,2]
[356643739,1742891440416,-111334.97633337,0.0001299,2]
[356643749,1742891440524,-949.75236137,0.0001299,2]
[356643776,1742891446174,-324.89803351,0.0001299,2]
[356643777,1742891446229,-802.92343072,0.0001299,2]
[356643788,1742891855368,-152.67,0.00012057,2]
[356643797,1742892239669,202.922946,0.00011943,2]
[356643800,1742892344281,-229.55763535,0.0001205,2]
[356643808,1742892622672,-37.44236465,0.0001205,2]
[356643809,1742892622699,-2047.5838069,0.00012057,2]
[356643810,1742892622726,-150.0,0.00012617,2]
[356643811,1742892622751,-152.66999999,0.0001279,2]
[356643812,1742892622776,-500.0,0.00012873,2]
[356643813,1742892622802,-500.0,0.00012873,2]
[356643814,1742892622827,-500.0,0.00012873,2]
[356643815,1742892622852,-500.0,0.00012873,2]
[356643816,1742892622877,-550.11696844,0.0001288,2]
[356643817,1742892622902,-254.18479309,0.0001288,2]
[356643818,1742892622927,-300.0,0.00012889,2]
[356643819,1742892622952,-252.00206693,0.0001289,2]
[356643829,1742892632928,-500.0,0.00012873,2]
[356643830,1742892632938,-500.0,0.00012873,2]
[356643831,1742892632948,-500.0,0.00012873,2]
[356643832,1742892632957,-295.84177505,0.00012873,2]
[356643833,1742892632968,-328.86284584,0.00012873,2]
[356643834,1742892632979,-625.76483404,0.00012889,2]
[356643835,1742892632989,-4747.99793307,0.0001289,2]
[356643836,1742892632999,-5471.6558028,0.0001289,2]
[356643844,1742892638359,-337.90960781,0.0001289,2]
[356643845,1742892638429,-2286.29673295,0.0001289,2]
[356643846,1742892638441,-4245.72173351,0.0001289,2]
[356643877,1742892640661,-421.24664639,0.0001289,2]
[356643902,1742892643591,-3999.9999975,0.0001289,2]
[356643914,1742892646467,-275.16655845,0.0001289,2]
[356643915,1742892646494,-3928.01377965,0.0001289,2]
[356643916,1742892646505,-11000.0,0.0001289,2]
[356643917,1742892850680,2074.3331539,0.0001189,2]
[356643918,1742893159070,374.4738731,0.00011937,2]
[356643962,1742893832721,-203.47778888,0.000128,2]
[356643963,1742893832730,-702.01595041,0.000128,2]
[356643964,1742893832772,-451.79522765,0.000128,2]
[356643965,1742893832783,-142.83307378,0.000128,2]
[356643966,1742893832792,-150.0,0.00012814,2]
[356643967,1742893832802,-500.0,0.00012872,2]
[356643968,1742893832812,-500.0,0.00012872,2]
[356643969,1742893832821,-338.92880149,0.00012872,2]
[356643970,1742893832831,-500.0,0.00012872,2]
[356643971,1742893832840,-500.0,0.00012872,2]
[356643972,1742893832851,-500.0,0.00012872,2]
[356643973,1742893832860,-500.0,0.00012872,2]
[356643974,1742893832869,-300.0,0.00012872,2]
[356643975,1742893832879,-160.58081222,0.00012873,2]
[356643976,1742893832888,-500.0,0.00012873,2]
[356643977,1742893832898,-500.01763616,0.00012873,2]
[356643978,1742893832907,-500.0,0.00012873,2]
[356643979,1742893832917,-500.0,0.00012873,2]
[356643980,1742893832927,-500.0,0.00012873,2]
[356643981,1742893832937,-500.0,0.00012873,2]
[356643982,1742893832946,-500.0,0.00012873,2]
[356643983,1742893832956,-200.10200533,0.00012873,2]
[356643984,1742893832965,-500.0,0.00012873,2]
[356643985,1742893832975,-212.3778216,0.00012873,2]
[356643986,1742893833004,-287.6221784,0.00012873,2]
[356643987,1742893833013,-575.58754141,0.00012873,2]
[356643988,1742893833023,-500.0,0.00012873,2]
[356643989,1742893833032,-500.0,0.00012873,2]
[356643990,1742893833043,-535.44368373,0.00012873,2]
[356643991,1742893833054,-501.81664954,0.00012873,2]
[356643992,1742893833065,-500.0,0.00012873,2]
[356643993,1742893833074,-500.0,0.00012873,2]
[356643994,1742893833085,-501.74498303,0.00012873,2]
[356643995,1742893833096,-500.79003951,0.00012873,2]
[356643996,1742893833105,-500.0,0.00012873,2]
[356643997,1742893833115,-500.0,0.00012873,2]
[356643998,1742893833125,-500.0,0.00012873,2]
[356643999,1742893833135,-500.0,0.00012873,2]
[356644000,1742893833146,-500.0,0.00012873,2]
[356644001,1742893833156,-1200.0,0.00012882,2]
[356644002,1742893833166,-1001.26724194,0.00012889,2]
[356644003,1742893833176,-199.42907723,0.0001289,2]
[356644004,1742893833185,-44670.44701986,0.0001289,2]
[356644005,1742893833217,-27794.62614699,0.0001289,2]
[356644006,1742893833251,-4337.85,0.0001289,2]
[356644026,1742893838516,-259.34527491,0.0001279,2]
[356644027,1742893838527,-434.85472509,0.0001289,2]
[356644073,1742893840866,-2689.36949614,0.0001289,2]
[356644580,1742893846566,-3479.44443915,0.0001289,2]
[356644583,1742893846619,-50679.90210108,0.0001289,2]
[356644584,1742893894238,9439.2880884,0.0001194,2]
[356644590,1742894374391,5000.0,0.00012,30]
[356644633,1742894913191,667.09189276,0.0001,7]
[356644677,1742895037600,-150.0,0.00012611,2]
[356644678,1742895037610,-1216.3040317,0.0001269,2]
[356644679,1742895037620,-3341.24506226,0.0001269,2]
[356644680,1742895037629,-300.0,0.00012714,2]
[356644681,1742895037638,-500.0,0.00012715,2]
[356644682,1742895037648,-500.0,0.00012715,2]
[356644683,1742895037657,-500.0,0.00012715,2]
[356644684,1742895037666,-500.0,0.00012715,2]
[356644685,1742895037675,-500.0,0.00012715,2]
[356644686,1742895037685,-186.50738696,0.00012715,2]
[356644687,1742895037694,-500.0,0.00012715,2]
[356644688,1742895037704,-195.73787814,0.00012715,2]
[356644689,1742895037713,-9302.68443437,0.00012716,2]
[356644690,1742895037723,-640.66469067,0.00012773,2]
[356644691,1742895037732,-503.75552138,0.00012773,2]
[356644692,1742895037741,-500.0,0.00012773,2]
[356644693,1742895037751,-500.0,0.00012773,2]
[356644694,1742895037760,-500.0,0.00012773,2]
[356644695,1742895037769,-235.34932101,0.00012773,2]
[356644696,1742895037779,-621.16894622,0.00012773,2]
[356644697,1742895037971,-500.0,0.00012773,2]
[356644698,1742895037981,-501.19737844,0.00012773,2]
[356644699,1742895037990,-500.0,0.00012773,2]
[356644700,1742895038000,-500.0,0.00012773,2]
[356644701,1742895038009,-500.0,0.00012773,2]
[356644702,1742895038018,-500.0,0.00012773,2]
[356644703,1742895038027,-500.0,0.00012773,2]
[356644704,1742895038036,-373.66146228,0.00012773,2]
[356644705,1742895038045,-279.00887657,0.00012773,2]
[356644706,1742895038054,-500.0,0.00012773,2]
[356644707,1742895038063,-500.0,0.00012773,2]
[356644708,1742895038073,-501.75623843,0.00012773,2]
[356644709,1742895038082,-500.0,0.00012773,2]
[356644710,1742895038091,-500.0,0.00012773,2]
[356644711,1742895038100,-503.8441004,0.00012773,2]
[356644712,1742895038109,-500.0,0.00012773,2]
[356644713,1742895038118,-500.0,0.00012773,2]
[356644714,1742895038128,-500.0,0.00012773,2]
[356644715,1742895038137,-500.0,0.00012773,2]
[356644716,1742895038146,-500.0,0.00012773,2]
[356644717,1742895038155,-502.14289944,0.00012773,2]
[356644718,1742895038164,-501.88619533,0.00012773,2]
[356644719,1742895038173,-500.0,0.00012773,2]
[356644720,1742895038182,-2112.71978312,0.0001278,2]
[356644721,1742895038191,-151.0,0.00012782,2]
[356644722,1742895038200,-1000.0,0.00012782,2]
[356644723,1742895038209,-442.70556665,0.00012782,2]
[356644724,1742895038226,-157.29443335,0.00012782,2]
[356644725,1742895038237,-500.0,0.00012789,2]
[356644726,1742895038246,-224.45123619,0.00012789,2]
[356644727,1742895038255,-500.0,0.00012789,2]
[356644728,1742895038264,-397.65691609,0.0001279,2]
[356644737,1742895039959,-1533.64610383,0.0001279,2]
[356644749,1742895045747,-7407.4582188,0.0001279,2]
[356644750,1742895045759,-11000.0,0.0001279,2]
[356644784,1742895909745,2138.6899835,0.00012,2]
[356644785,1742895915965,4006.671144,0.00012,2]
[356644792,1742896027386,3304.19,0.00010959,2]
[356644793,1742896037856,11871.3,0.00010959,2]
[356644794,1742896048332,9892.75,0.00010959,2]
[356644795,1742896058802,9152.87,0.00010959,2]
[356644796,1742896069252,7835.47,0.00010959,2]
[356644797,1742896079731,6702.96,0.00010959,2]
[356644798,1742896090228,5585.8,0.00010959,2]
[356644799,1742896100966,4654.83,0.00010959,2]
[356644800,1742896111461,4244.3,0.00010959,2]
[356644802,1742896122191,3536.91,0.00010959,2]
[356644803,1742896132905,3100.74,0.00010959,2]
[356644806,1742896143361,2642.02,0.00010959,2]
[356644807,1742896153871,2201.68,0.00010959,2]
[356644808,1742896159284,216.3419944,0.00011681,2]
[356644809,1742896164565,1923.46,0.00010959,2]
[356644811,1742896175066,1602.88,0.00010959,2]
[356644812,1742896185981,1335.73,0.00010959,2]
[356644813,1742896196704,1113.11,0.00010959,2]
[356644821,1742896218024,927.59,0.00010959,2]
[356644822,1742896228675,773.0,0.00010959,2]
[356644842,1742896232035,-182.17,0.00012238,2]
[356644843,1742896232046,-150.0,0.00012362,2]
[356644844,1742896232056,-5000.0,0.00012616,2]
[356644845,1742896232065,-167.57647126,0.00012672,2]
[356644846,1742896232075,-500.0,0.00012672,2]
[356644847,1742896232084,-300.0,0.00012672,2]
[356644848,1742896232094,-580.15705442,0.00012673,2]
[356644849,1742896232103,-500.0,0.00012673,2]
[356644850,1742896232113,-500.0,0.00012673,2]
[356644851,1742896232122,-364.16826987,0.00012673,2]
[356644852,1742896232132,-500.0,0.00012673,2]
[356644853,1742896232142,-500.0,0.00012673,2]
[356644854,1742896232151,-500.0,0.00012673,2]
[356644855,1742896232161,-534.44279293,0.00012673,2]
[356644856,1742896232170,-500.0,0.00012673,2]
[356644857,1742896232180,-270.5285588,0.00012673,2]
[356644858,1742896232189,-503.18780296,0.00012673,2]
[356644859,1742896232199,-500.0,0.00012673,2]
[356644860,1742896232208,-500.0,0.00012673,2]
[356644861,1742896232217,-252.78065576,0.00012673,2]
[356644862,1742896232228,-501.77196014,0.00012673,2]
[356644863,1742896232238,-500.0,0.00012673,2]
[356644864,1742896232247,-500.0,0.00012673,2]
[356644865,1742896232256,-500.0,0.00012673,2]
[356644866,1742896232266,-500.0,0.00012673,2]
[356644867,1742896232275,-500.0,0.00012673,2]
[356644868,1742896232284,-292.90188756,0.00012673,2]
[356644869,1742896232294,-151.0,0.00012683,2]
[356644870,1742896232303,-600.0,0.00012683,2]
[356644871,1742896232313,-507.11586534,0.00012689,2]
[356644872,1742896232322,-177.0354745,0.00012689,2]
[356644873,1742896232332,-21787.97015914,0.0001269,2]
[356644874,1742896232380,-871.54,0.0001269,2]
[356644875,1742896232392,-4046.63890435,0.0001269,2]
[356644876,1742896232467,-29716.09724991,0.0001269,2]
[356644882,1742896237915,-265577.7536866,0.0001269,2]
[356644883,1742896237925,-622.2,0.00012738,2]
[356644884,1742896237935,-645.2214,0.00012793,2]
[356644885,1742896237944,-864.1423506,0.00012794,2]
[356644886,1742896237955,-345.76207051,0.00012889,2]
[356644887,1742896237964,-250.0,0.0001298,2]
[356644888,1742896237974,-194.0,0.00013,2]
[356644889,1742896237983,-250.0,0.00013038,2]
[356644890,1742896237992,-354.00080294,0.000131,2]
[356644891,1742896238005,-165.9117292,0.000131,2]
[356644892,1742896238015,-1000.0,0.0001315,2]
[356644893,1742896238025,-156.587,0.00013231,2]
[356644894,1742896238034,-10690.95525015,0.00013253,2]
[356644895,1742896238044,-200.0,0.0001328,2]
[356644896,1742896238054,-568.21,0.00013301,2]
[356644898,1742896238063,-264.857,0.00013301,2]
[356644899,1742896238072,-2264.0,0.00013301,2]
[356644900,1742896238082,-1915.0,0.00013301,2]
[356644901,1742896238090,-150.0,0.00013301,2]
[356644902,1742896238100,-400.0,0.00013301,2]
[356644903,1742896238109,-177.63432003,0.00013342,2]
[356644904,1742896238118,-172.594823,0.00013424,2]
[356644905,1742896238127,-152.130205,0.00013424,2]
[356644906,1742896238136,-152.130205,0.00013424,3]
[356644907,1742896238148,-250.0,0.00013427,2]
[356644908,1742896238157,-500.0,0.00013427,2]
[356644909,1742896238167,-1001.686871,0.00013482,2]
[356644910,1742896238176,-331789.36257764,0.0001349,2]
[356644911,1742896238186,-299.999999,0.000135,2]
[356644912,1742896238195,-239.65414924,0.00013561,2]
[356644913,1742896238205,-1942.42715466,0.00013561,2]
[356644914,1742896238214,-151.14329952,0.0001359,2]
[356644915,1742896238224,-151.0,0.000136,2]
[356644916,1742896238233,-300.0,0.000136,4]
[356644917,1742896238242,-160.0,0.00013627,2]
[356644918,1742896238251,-418.3522718,0.00013627,2]
[356644919,1742896238261,-160.0,0.00013627,2]
[356644920,1742896238270,-160.0,0.00013627,2]
[356644921,1742896238280,-834.75273087,0.00013627,2]
[356644923,1742896238472,-500.0,0.00013673,2]
[356644924,1742896238483,-500.0,0.00013673,2]
[356644925,1742896238492,-1128.863994,0.00013685,2]
[356644926,1742896238501,-1128.863994,0.00013685,2]
[356644927,1742896238510,-9052.37533803,0.00013685,2]
[356644928,1742896238519,-500.0,0.00013698,2]
[356644929,1742896238529,-151.0,0.00013698,2]
[356644930,1742896238538,-500.0,0.00013698,2]
[356644931,1742896238547,-500.0,0.00013698,2]
[356644932,1742896238556,-500.0,0.00013698,2]
[356644933,1742896238565,-500.0,0.00013698,2]
[356644934,1742896238574,-500.0,0.00013698,2]
[356644935,1742896238583,-344.32950053,0.00013698,2]
[356644936,1742896238592,-500.0,0.00013698,2]
[356644937,1742896238602,-500.0,0.00013698,2]
[356644938,1742896238611,-500.0,0.00013698,2]
[356644939,1742896238620,-500.0,0.00013698,2]
[356644940,1742896238629,-500.0,0.00013698,2]
[356644941,1742896238638,-500.0,0.00013698,2]
[356644942,1742896238647,-500.0,0.00013698,2]
[356644943,1742896238656,-500.0,0.00013698,2]
[356644944,1742896238666,-500.0,0.00013698,2]
[356644945,1742896238675,-500.0,0.00013698,2]
[356644946,1742896238684,-500.0,0.00013698,2]
[356644947,1742896238693,-500.0,0.00013698,2]
[356644948,1742896238702,-500.0,0.00013698,2]
[356644949,1742896238711,-535.74,0.00013698,2]
[356644950,1742896238719,-500.0,0.00013698,2]
[356644951,1742896238729,-500.0,0.00013698,2]
[356644952,1742896238738,-500.0,0.00013698,2]
[356644953,1742896238747,-500.0,0.00013698,2]
[356644954,1742896238756,-500.0,0.00013698,2]
[356644955,1742896238766,-500.0,0.00013698,2]
[356644956,1742896238775,-500.0,0.00013698,2]
[356644957,1742896238784,-610.66,0.00013698,2]
[356644958,1742896238794,-500.0,0.00013698,2]
[356644959,1742896238803,-500.0,0.00013698,2]
[356644960,1742896238813,-500.0,0.00013698,2]
[356644961,1742896238822,-500.0,0.00013698,2]
[356644962,1742896238831,-500.0,0.00013698,2]
[356644963,1742896238841,-500.0,0.00013698,2]
[356644964,1742896238851,-1161.62,0.00013698,2]
[356644965,1742896238860,-500.0,0.00013698,2]
[356644966,1742896238869,-500.0,0.00013698,2]
[356644967,1742896238879,-500.0,0.00013698,2]
[356644968,1742896238888,-500.0,0.00013698,2]
[356644969,1742896238898,-613.86,0.00013698,2]
[356644970,1742896238909,-500.0,0.00013698,2]
[356644971,1742896238920,-500.0,0.00013698,2]
[356644972,1742896238929,-500.0,0.00013698,2]
[356644973,1742896238939,-500.0,0.00013698,2]
[356644974,1742896238950,-653.25,0.00013698,2]
[356644975,1742896238960,-509.69,0.00013698,2]
[356644976,1742896238969,-500.0,0.00013698,2]
[356644977,1742896238978,-500.0,0.00013698,2]
[356644978,1742896238988,-500.0,0.00013698,2]
[356644979,1742896238998,-500.0,0.00013698,2]
[356644980,1742896239011,-500.0,0.00013698,2]
[356644981,1742896239021,-500.0,0.00013698,2]
[356644982,1742896239030,-614.65,0.00013698,2]
[356644983,1742896239040,-500.0,0.00013698,2]
[356644984,1742896239050,-500.0,0.00013698,2]
[356644985,1742896239060,-610.32480904,0.00013698,2]
[356644986,1742896239069,-500.0,0.00013698,2]
[356644987,1742896239080,-500.0,0.00013698,2]
[356644988,1742896239091,-500.0,0.00013698,2]
[356644989,1742896239100,-500.0,0.00013698,2]
[356644990,1742896239110,-500.0,0.00013698,2]
[356644991,1742896239120,-500.0,0.00013698,2]
[356644992,1742896239130,-714.4,0.00013698,2]
[356644993,1742896239139,-500.0,0.00013698,2]
[356644994,1742896239149,-500.0,0.00013698,2]
[356644995,1742896239158,-500.0,0.00013698,2]
[356644996,1742896239170,-500.0,0.00013698,2]
[356644997,1742896239180,-904.13,0.00013698,2]
[356644998,1742896239190,-500.0,0.00013698,2]
[356644999,1742896239200,-500.0,0.00013698,2]
[356645000,1742896239210,-500.0,0.00013698,2]
[356645001,1742896239220,-500.0,0.00013698,2]
[356645002,1742896239231,-500.0,0.00013698,2]
[356645003,1742896239240,-500.0,0.00013698,2]
[356645004,1742896239251,-500.0,0.00013698,2]
[356645005,1742896239260,-379.70643419,0.00013698,2]
[356645006,1742896239272,-3064.75,0.00013698,2]
[356645007,1742896239282,-500.0,0.00013698,2]
[356645008,1742896239293,-500.0,0.00013698,2]
[356645009,1742896239304,-500.0,0.00013698,2]
[356645010,1742896239323,-500.0,0.00013698,2]
[356645011,1742896239334,-500.0,0.00013698,2]
[356645012,1742896239345,-500.0,0.00013698,2]
[356645013,1742896239355,-500.0,0.00013698,2]
[356645014,1742896239366,-500.0,0.00013698,2]
[356645015,1742896239377,-500.0,0.00013698,2]
[356645016,1742896239387,-500.0,0.00013698,2]
[356645017,1742896239398,-500.0,0.00013698,2]
[356645018,1742896239408,-500.0,0.00013698,2]
[356645019,1742896239420,-500.0,0.00013698,2]
[356645020,1742896239430,-500.0,0.00013698,2]
[356645021,1742896239440,-500.0,0.00013698,2]
[356645022,1742896239449,-500.0,0.00013698,2]
[356645023,1742896239459,-500.0,0.00013698,2]
[356645024,1742896239469,-500.0,0.00013698,2]
[356645025,1742896239478,-500.0,0.00013698,2]
[356645026,1742896239488,-500.0,0.00013698,2]
[356645027,1742896239498,-926.18,0.00013698,2]
[356645028,1742896239507,-500.0,0.00013698,2]
[356645029,1742896239517,-500.0,0.00013698,2]
[356645030,1742896239527,-500.0,0.00013698,2]
[356645031,1742896239536,-500.0,0.00013698,2]
[356645032,1742896239547,-500.0,0.00013698,2]
[356645033,1742896239559,-500.0,0.00013698,2]
[356645034,1742896239569,-500.0,0.00013698,2]
[356645035,1742896239579,-500.0,0.00013698,2]
[356645036,1742896239588,-500.0,0.00013698,2]
[356645037,1742896239598,-500.0,0.00013698,2]
[356645038,1742896239608,-500.0,0.00013698,2]
[356645039,1742896239618,-500.0,0.00013698,2]
[356645040,1742896239628,-500.0,0.00013698,2]
[356645041,1742896239637,-709.05,0.00013698,2]
[356645042,1742896239647,-500.0,0.00013698,2]
[356645043,1742896239659,-500.0,0.00013698,2]
[356645044,1742896239669,-500.0,0.00013698,2]
[356645045,1742896239678,-500.0,0.00013698,2]
[356645047,1742896239688,-631.81,0.00013698,2]
[356645049,1742896239698,-500.0,0.00013698,2]
[356645051,1742896239707,-500.0,0.00013698,2]
[356645052,1742896239717,-500.0,0.00013698,2]
[356645053,1742896239727,-579.92449291,0.00013698,2]
[356645054,1742896239738,-500.0,0.00013698,2]
[356645055,1742896239747,-500.0,0.00013698,2]
[356645056,1742896239757,-500.0,0.00013698,2]
[356645057,1742896239767,-208.39577871,0.00013698,2]
[356645058,1742896239777,-500.0,0.00013698,2]
[356645059,1742896239786,-500.0,0.00013698,2]
[356645061,1742896239795,-500.0,0.00013698,2]
[356645062,1742896239804,-532.84,0.00013698,2]
[356645063,1742896239814,-836.53,0.00013698,2]
[356645064,1742896239823,-500.0,0.00013698,2]
[356645065,1742896239833,-500.0,0.00013698,2]
[356645066,1742896239843,-568.98,0.00013698,2]
[356645068,1742896239852,-500.0,0.00013698,2]
[356645069,1742896239862,-500.0,0.00013698,2]
[356645070,1742896239872,-583.11131182,0.00013698,2]
[356645071,1742896239881,-853.52,0.00013698,2]
[356645072,1742896239891,-500.0,0.00013698,2]
[356645074,1742896239901,-500.0,0.00013698,2]
[356645075,1742896239911,-500.0,0.00013698,2]
[356645076,1742896239922,-560.16,0.00013698,2]
[356645077,1742896239931,-500.0,0.00013698,2]
[356645078,1742896239941,-150.15,0.00013698,2]
[356645079,1742896239951,-159.85631476,0.00013698,2]
[356645080,1742896239960,-153.31662963,0.00013698,2]
[356645081,1742896239969,-500.0,0.00013698,2]
[356645082,1742896239980,-500.0,0.00013698,2]
[356645083,1742896239989,-1913.26,0.00013698,2]
[356645084,1742896239999,-500.0,0.00013698,2]
[356645085,1742896240008,-151.2439142,0.00013698,2]
[356645086,1742896240018,-500.0,0.00013698,2]
[356645087,1742896240027,-500.0,0.00013698,2]
[356645088,1742896240036,-500.0,0.00013698,2]
[356645089,1742896240046,-500.0,0.00013698,2]
[356645090,1742896240056,-3519.53,0.00013698,2]
[356645091,1742896240065,-500.0,0.00013698,2]
[356645092,1742896240074,-500.0,0.00013698,2]
[356645093,1742896240083,-500.0,0.00013698,2]
[356645094,1742896240093,-500.0,0.00013698,2]
[356645095,1742896240103,-500.0,0.00013698,2]
[356645096,1742896240112,-500.0,0.00013698,2]
[356645097,1742896240122,-500.0,0.00013698,2]
[356645098,1742896240131,-500.0,0.00013698,2]
[356645099,1742896240141,-1840.17,0.00013698,2]
[356645100,1742896240150,-546.35,0.00013698,2]
[356645101,1742896240160,-500.0,0.00013698,2]
[356645102,1742896240169,-1128.863994,0.00013698,2]
[356645103,1742896240179,-1128.863994,0.00013698,2]
[356645104,1742896240188,-1128.863994,0.00013698,2]
[356645105,1742896240198,-1128.863994,0.00013698,2]
[356645106,1742896240208,-1128.863994,0.00013698,2]
[356645107,1742896240217,-1128.863994,0.00013698,2]
[356645108,1742896240226,-608.89,0.00013698,2]
[356645109,1742896240235,-1128.863994,0.00013698,2]
[356645110,1742896240245,-1128.863994,0.00013698,2]
[356645111,1742896240256,-500.0,0.00013698,2]
[356645112,1742896240265,-1128.863994,0.00013698,2]
[356645114,1742896240274,-500.0,0.00013698,2]
[356645115,1742896240284,-1128.863994,0.00013698,2]
[356645117,1742896240293,-1128.863994,0.00013698,2]
[356645118,1742896240303,-1128.863994,0.00013698,2]
[356645119,1742896240312,-1128.863994,0.00013698,2]